[Event "New Zealand Rapid Championship"]
[Site "Wellington"]
[Date "2023.01.11"]
[Round "1.7"]
[White "Waiwai, Tane"]
[Black "Xie, Felix"]
[Result "0-1"]
[TimeControl "25+5"]
[BlackTitle "CM"]
[WhiteFideId "4318099"]
[BlackFideId "4308174"]
[WhiteElo "1341"]
[BlackElo "2232"]

1. e4 {[%clk 00:25:09]} c6 {[%clk 00:25:09]} {[%emt 00:00:02]} 2. d4 {[%clk
00:25:12]} {[%emt 00:00:02]} d5 {[%clk 00:25:13]} {[%emt 00:00:01]} 3. f3
{[%clk 00:25:16]} {[%emt 00:00:01]} e6 {[%clk 00:25:16]} {[%emt 00:00:02]} 4.
e5 {[%clk 00:25:19]} {[%emt 00:00:02]} c5 {[%clk 00:25:19]} {[%emt 00:00:01]} 5.
c3 {[%clk 00:25:23]} {[%emt 00:00:01]} Nc6 {[%clk 00:25:23]} {[%emt 00:00:02]}
6. f4 {[%clk 00:25:26]} {[%emt 00:00:01]} Qb6 {[%clk 00:25:26]} {[%emt
00:00:02]} 7. Nf3 {[%clk 00:25:29]} {[%emt 00:00:02]} Nh6 {[%clk 00:25:29]}
{[%emt 00:00:02]} 8. Be2 {[%clk 00:24:47]} {[%emt 00:00:47]} cxd4 {[%clk
00:25:30]} {[%emt 00:00:04]} 9. cxd4 {[%clk 00:24:48]} {[%emt 00:00:03]} Nf5
{[%clk 00:25:31]} {[%emt 00:00:04]} 10. Nc3 {[%clk 00:24:13]} {[%emt 00:00:41]}
Ncxd4 {[%clk 00:25:23]} {[%emt 00:00:13]} 11. Na4 {[%clk 00:23:23]} {[%emt
00:00:55]} Nxf3+ {[%clk 00:25:19]} {[%emt 00:00:10]} 12. Bxf3 {[%clk 00:23:25]}
{[%emt 00:00:02]} Bb4+ {[%clk 00:25:21]} {[%emt 00:00:02]} 13. Nc3 {[%clk
00:23:09]} {[%emt 00:00:21]} Bd7 {[%clk 00:25:04]} {[%emt 00:00:22]} 14. a3
{[%clk 00:22:02]} {[%emt 00:01:15]} Bxc3+ {[%clk 00:24:57]} {[%emt 00:00:12]}
15. bxc3 {[%clk 00:22:05]} h5 {[%clk 00:24:48]} {[%emt 00:00:13]} 16. Bd2
{[%clk 00:20:12]} {[%emt 00:01:58]} Bb5 {[%clk 00:23:53]} {[%emt 00:01:00]} 17.
Rb1 {[%clk 00:19:21]} {[%emt 00:00:57]} Qc5 {[%clk 00:23:38]} {[%emt 00:00:19]}
18. a4 {[%clk 00:19:05]} {[%emt 00:00:29]} Bc4 {[%clk 00:23:38]} 19. Rxb7
{[%clk 00:17:46]} {[%emt 00:01:38]} Ba6 {[%clk 00:21:48]} {[%emt 00:01:38]} 20.
Rb2 {[%clk 00:16:42]} {[%emt 00:01:09]} Ne3 {[%clk 00:21:17]} {[%emt 00:00:36]}
21. Qc1 {[%clk 00:14:46]} {[%emt 00:02:01]} Ng4 {[%clk 00:20:35]} {[%emt
00:00:48]} 22. Bxg4 {[%clk 00:14:00]} {[%emt 00:00:51]} hxg4 {[%clk 00:20:38]}
{[%emt 00:00:02]} 23. Be3 {[%clk 00:13:42]} {[%emt 00:00:23]} Qc4 {[%clk
00:20:41]} {[%emt 00:00:02]} 24. Qc2 {[%clk 00:13:08]} {[%emt 00:00:38]} Rxh2
{[%clk 00:19:14]} {[%emt 00:01:32]} 25. Rg1 {[%clk 00:10:29]} {[%emt 00:02:45]}
Rc8 {[%clk 00:19:10]} {[%emt 00:00:09]} 26. Bd4 {[%clk 00:09:58]} {[%emt
00:00:35]} Kf8 {[%clk 00:18:32]} {[%emt 00:00:44]} 27. Bxa7 {[%clk 00:07:54]}
{[%emt 00:02:09]} Qxf4 {[%clk 00:17:56]} {[%emt 00:00:41]} 28. Bd4 {[%clk
00:06:46]} {[%emt 00:01:13]} g3 {[%clk 00:17:33]} {[%emt 00:00:28]} 29. Rb4
{[%clk 00:06:10]} {[%emt 00:00:41]} Kg8 {[%clk 00:17:09]} {[%emt 00:00:30]} 30.
Qb1 {[%clk 00:04:45]} {[%emt 00:01:28]} Rxg2 {[%clk 00:15:27]} {[%emt
00:01:47]} 31. Rxg2 {[%clk 00:01:52]} {[%emt 00:03:01]} Qf1+ {[%clk 00:15:29]}
32. Kd2 {[%clk 00:01:55]} {[%emt 00:00:01]} Qxg2+ {[%clk 00:15:32]} {[%emt
00:00:03]} 33. Kc1 {[%clk 00:01:56]} {[%emt 00:00:04]} Qe2 {[%clk 00:15:23]}
{[%emt 00:00:13]} 34. Qc2 {[%clk 00:00:50]} {[%emt 00:01:12]} Qf1+ {[%clk
00:15:07]} {[%emt 00:00:21]} 35. Kb2 {[%clk 00:00:48]} {[%emt 00:00:07]} Bd3
{[%clk 00:15:07]} {[%emt 00:00:05]} 36. Qd2 {[%clk 00:00:35]} {[%emt 00:00:18]}
Qb1+ {[%clk 00:15:04]} {[%emt 00:00:08]} 37. Ka3 {[%clk 00:00:38]} {[%emt
00:00:02]} Qa1+ {[%clk 00:15:07]} {[%emt 00:00:10]} 38. Qa2 {[%clk 00:00:13]}
{[%emt 00:00:22]} Rxc3+ {[%clk 00:14:47]} {[%emt 00:00:25]} 39. Bxc3 {[%clk
00:00:10]} {[%emt 00:00:08]} Qxc3+ {[%clk 00:14:50]} 40. Rb3 {[%clk 00:00:12]}
{[%emt 00:00:13]} Qc5+ {[%clk 00:14:54]} 41. Rb4 {[%clk 00:00:14]} Bf1 {[%emt
00:00:30]} 0-1

[Event "New Zealand Rapid Championship"]
[Site "Wellington"]
[Date "2023.01.11"]
[Round "1.8"]
[White "Carpinter, Anthony L"]
[Black "Farrington, Lawrence B"]
[Result "1-0"]
[TimeControl "25+5"]
[WhiteFideId "4300238"]
[BlackFideId "4301749"]
[WhiteElo "2147"]
[BlackElo "1546"]

1. d4 {[%clk 00:25:02]} {[%emt 00:00:06]} d6 {[%clk 00:23:58]} {[%emt
00:01:13]} 2. e4 {[%clk 00:24:53]} {[%emt 00:00:14]} Nf6 {[%clk 00:23:45]}
{[%emt 00:00:18]} 3. Nc3 {[%clk 00:24:42]} {[%emt 00:00:15]} g6 {[%clk
00:23:40]} {[%emt 00:00:11]} 4. Nf3 {[%clk 00:24:25]} {[%emt 00:00:22]} Bg7
{[%clk 00:23:29]} {[%emt 00:00:15]} 5. Be2 {[%clk 00:24:23]} {[%emt 00:00:07]}
O-O {[%clk 00:23:24]} {[%emt 00:00:10]} 6. O-O {[%clk 00:24:23]} {[%emt
00:00:06]} Bg4 {[%clk 00:22:53]} {[%emt 00:00:48]} 7. Be3 {[%clk 00:24:09]}
{[%emt 00:00:06]} e5 {[%clk 00:22:39]} {[%emt 00:00:19]} 8. h3 {[%clk
00:23:56]} {[%emt 00:00:17]} Bxf3 {[%clk 00:22:36]} {[%emt 00:00:16]} 9. Bxf3
{[%clk 00:23:54]} Nc6 {[%clk 00:22:30]} {[%emt 00:00:17]} 10. d5 {[%clk
00:22:41]} {[%emt 00:01:18]} Ne7 {[%clk 00:22:30]} 11. Qd2 {[%clk 00:22:27]}
{[%emt 00:00:19]} Nd7 {[%clk 00:22:07]} {[%emt 00:00:27]} 12. Bh6 {[%clk
00:21:38]} {[%emt 00:01:07]} f5 {[%clk 00:21:36]} {[%emt 00:00:22]} 13. Bxg7
{[%clk 00:21:28]} {[%emt 00:00:15]} Kxg7 {[%clk 00:21:35]} {[%emt 00:00:06]} 14.
exf5 {[%clk 00:20:05]} {[%emt 00:01:28]} gxf5 {[%clk 00:19:52]} {[%emt
00:01:47]} 15. Be2 {[%clk 00:18:50]} {[%emt 00:01:20]} a6 {[%clk 00:18:15]}
{[%emt 00:01:43]} 16. a4 {[%clk 00:18:11]} {[%emt 00:00:43]} Ng6 {[%clk
00:17:55]} {[%emt 00:00:25]} 17. g3 {[%clk 00:17:40]} {[%emt 00:00:36]} Qf6
{[%clk 00:16:52]} {[%emt 00:01:08]} 18. f4 {[%clk 00:17:12]} {[%emt 00:00:33]}
Ne7 {[%clk 00:14:31]} {[%emt 00:02:27]} 19. Kh2 {[%clk 00:16:36]} {[%emt
00:00:41]} Kh8 {[%clk 00:12:59]} {[%emt 00:01:41]} 20. Rad1 {[%clk 00:15:59]}
{[%emt 00:00:38]} Rg8 {[%clk 00:11:09]} {[%emt 00:01:55]} 21. Rg1 {[%clk
00:15:31]} {[%emt 00:00:33]} e4 {[%clk 00:10:36]} {[%emt 00:00:38]} 22. Qd4
{[%clk 00:15:10]} {[%emt 00:00:26]} Qxd4 {[%clk 00:10:18]} {[%emt 00:00:23]} 23.
Rxd4 {[%clk 00:15:06]} {[%emt 00:00:09]} Nf6 {[%clk 00:09:35]} {[%emt
00:00:49]} 24. Rdd1 {[%clk 00:12:19]} {[%emt 00:02:52]} Rae8 {[%clk 00:08:08]}
{[%emt 00:01:32]} 25. g4 {[%clk 00:11:55]} {[%emt 00:00:28]} h6 {[%clk
00:06:10]} {[%emt 00:02:03]} 26. g5 {[%clk 00:06:06]} {[%emt 00:05:54]} hxg5
{[%clk 00:05:12]} {[%emt 00:01:03]} 27. fxg5 {[%clk 00:05:30]} {[%emt
00:00:42]} Nd7 {[%clk 00:04:51]} {[%emt 00:00:25]} 28. h4 {[%clk 00:04:59]}
{[%emt 00:00:36]} Ng6 {[%clk 00:04:23]} {[%emt 00:00:33]} 29. Bh5 {[%clk
00:04:51]} {[%emt 00:00:14]} Rg7 {[%clk 00:03:36]} {[%emt 00:00:57]} 30. Bxg6
{[%clk 00:04:40]} {[%emt 00:00:16]} Rxg6 {[%clk 00:03:36]} 31. Rdf1 {[%clk
00:04:37]} {[%emt 00:00:07]} Re5 {[%clk 00:02:19]} {[%emt 00:01:22]} 32. Kg3
{[%clk 00:04:16]} {[%emt 00:00:26]} Rg8 {[%clk 00:01:47]} {[%emt 00:00:37]} 33.
Kf4 {[%clk 00:04:14]} {[%emt 00:00:07]} Rf8 {[%clk 00:01:23]} {[%emt 00:00:29]}
34. h5 {[%clk 00:04:03]} {[%emt 00:00:16]} Kh7 {[%clk 00:00:57]} {[%emt
00:00:31]} 35. Rf2 {[%clk 00:03:37]} {[%emt 00:00:32]} Kg7 {[%clk 00:00:28]}
{[%emt 00:00:33]} 36. Rh2 {[%clk 00:03:28]} {[%emt 00:00:14]} Rh8 {[%clk
00:00:23]} {[%emt 00:00:10]} 37. Ke3 {[%clk 00:03:23]} {[%emt 00:00:09]} Nf8
{[%clk 00:00:20]} {[%emt 00:00:09]} 38. Rhh1 {[%clk 00:03:13]} {[%emt
00:00:15]} Nh7 {[%clk 00:00:14]} {[%emt 00:00:10]} 39. Kd4 {[%clk 00:03:07]}
{[%emt 00:00:12]} Rhe8 {[%clk 00:00:09]} {[%emt 00:00:11]} 40. g6 {[%emt
00:00:28]} 1-0

[Event "New Zealand Rapid Championship"]
[Site "Wellington"]
[Date "2023.01.11"]
[Round "1.9"]
[White "Winter, Ryan"]
[Black "Sun, Wanyao Sarah"]
[Result "1/2-1/2"]
[TimeControl "25+5"]
[WhiteFideId "4306295"]
[BlackFideId "4313887"]
[WhiteElo "2117"]
[BlackElo "1270"]

1. e4 {[%clk 00:25:09]} {[%emt 00:00:01]} c6 {[%clk 00:25:07]} {[%emt
00:00:04]} 2. d4 {[%clk 00:25:09]} {[%emt 00:00:05]} d5 {[%clk 00:25:08]}
{[%emt 00:00:03]} 3. e5 {[%clk 00:25:09]} {[%emt 00:00:04]} Bf5 {[%clk
00:25:06]} {[%emt 00:00:08]} 4. h4 {[%clk 00:24:59]} {[%emt 00:00:15]} h5
{[%clk 00:24:58]} {[%emt 00:00:12]} 5. Bd3 {[%clk 00:24:55]} {[%emt 00:00:10]}
Bxd3 {[%clk 00:24:50]} {[%emt 00:00:13]} 6. Qxd3 {[%clk 00:24:58]} {[%emt
00:00:02]} e6 {[%clk 00:24:47]} {[%emt 00:00:08]} 7. Bg5 {[%clk 00:24:42]}
{[%emt 00:00:20]} Qb6 {[%clk 00:24:11]} {[%emt 00:00:42]} 8. Nd2 {[%clk
00:24:33]} {[%emt 00:00:14]} c5 {[%clk 00:23:54]} {[%emt 00:00:22]} 9. c4
{[%clk 00:24:21]} {[%emt 00:00:17]} Qxb2 {[%clk 00:23:15]} {[%emt 00:00:45]} 10.
Rd1 {[%clk 00:23:14]} {[%emt 00:01:15]} Nc6 {[%clk 00:22:41]} {[%emt 00:00:34]}
11. cxd5 {[%clk 00:20:46]} {[%emt 00:02:38]} exd5 {[%clk 00:21:16]} {[%emt
00:01:27]} 12. e6 {[%clk 00:15:41]} {[%emt 00:05:08]} Qxd4 {[%clk 00:18:32]}
{[%emt 00:02:48]} 13. exf7+ {[%clk 00:08:23]} {[%emt 00:07:25]} Kxf7 {[%clk
00:18:23]} {[%emt 00:00:14]} 14. Qf5+ {[%clk 00:05:57]} {[%emt 00:02:31]} Nf6
{[%clk 00:18:01]} {[%emt 00:00:28]} 15. Bxf6 {[%clk 00:03:20]} {[%emt
00:02:42]} gxf6 {[%clk 00:16:11]} {[%emt 00:01:54]} 16. Ngf3 {[%clk 00:02:04]}
{[%emt 00:01:20]} Re8+ {[%clk 00:14:50]} {[%emt 00:01:27]} 17. Kf1 {[%clk
00:02:08]} {[%emt 00:00:01]} Qg4 {[%clk 00:14:35]} {[%emt 00:00:21]} 18. Qxd5+
{[%clk 00:01:31]} {[%emt 00:00:42]} Qe6 {[%clk 00:14:27]} {[%emt 00:00:10]} 19.
Qxe6+ {[%clk 00:01:30]} {[%emt 00:00:09]} Rxe6 {[%clk 00:14:19]} {[%emt
00:00:13]} 20. g3 {[%clk 00:01:05]} {[%emt 00:00:30]} Bh6 {[%clk 00:14:04]}
{[%emt 00:00:17]} 21. Nc4 {[%clk 00:01:07]} {[%emt 00:00:06]} Rd8 {[%clk
00:13:42]} {[%emt 00:00:25]} 22. Kg2 {[%clk 00:01:05]} {[%emt 00:00:09]} b5
{[%clk 00:13:19]} {[%emt 00:00:28]} 23. Rxd8 {[%clk 00:00:49]} {[%emt
00:00:21]} Nxd8 {[%clk 00:13:22]} {[%emt 00:00:02]} 24. Na3 {[%clk 00:00:50]}
{[%emt 00:00:05]} a6 {[%clk 00:13:11]} {[%emt 00:00:15]} 25. Rd1 {[%clk
00:00:54]} {[%emt 00:00:02]} Nc6 {[%clk 00:13:06]} {[%emt 00:00:08]} 26. Rd7+
{[%clk 00:00:55]} {[%emt 00:00:05]} Re7 {[%clk 00:13:07]} {[%emt 00:00:04]} 27.
Rd6 {[%clk 00:00:57]} {[%emt 00:00:03]} Re6 {[%clk 00:13:06]} {[%emt 00:00:03]}
28. Rd7+ {[%clk 00:00:58]} {[%emt 00:00:09]} Re7 {[%clk 00:13:06]} {[%emt
00:00:04]} 29. Rd6 {[%clk 00:01:00]} {[%emt 00:00:03]} Re6 {[%emt 00:00:17]} 30.
Rd7+ Ne7 {[%emt 00:00:01]} 1/2-1/2

[Event "New Zealand Rapid Championship"]
[Site "Wellington"]
[Date "2023.01.11"]
[Round "1.10"]
[White "Moshakova, Elena"]
[Black "Sole, Michael D"]
[Result "0-1"]
[TimeControl "25+5"]
[WhiteFideId "55701736"]
[BlackFideId "4309030"]
[WhiteElo "1346"]
[BlackElo "2093"]

1. e4 {[%clk 00:25:08]} {[%emt 00:00:02]} e5 {[%clk 00:24:43]} {[%emt
00:00:27]} 2. Nf3 {[%clk 00:25:09]} {[%emt 00:00:05]} Nc6 {[%clk 00:24:41]}
{[%emt 00:00:08]} 3. d4 {[%clk 00:25:12]} {[%emt 00:00:02]} exd4 {[%clk
00:24:38]} {[%emt 00:00:08]} 4. Nxd4 {[%clk 00:25:14]} {[%emt 00:00:02]} Nf6
{[%clk 00:24:29]} {[%emt 00:00:14]} 5. Nc3 {[%clk 00:25:08]} {[%emt 00:00:12]}
Bb4 {[%clk 00:24:16]} {[%emt 00:00:19]} 6. Nxc6 {[%clk 00:24:49]} {[%emt
00:00:23]} bxc6 {[%clk 00:24:11]} {[%emt 00:00:10]} 7. Bd3 {[%clk 00:23:49]}
{[%emt 00:01:05]} d5 {[%clk 00:23:44]} {[%emt 00:00:41]} 8. O-O {[%clk
00:23:15]} {[%emt 00:00:31]} Bxc3 {[%clk 00:22:15]} {[%emt 00:01:34]} 9. bxc3
{[%clk 00:23:09]} {[%emt 00:00:12]} dxe4 {[%clk 00:22:17]} {[%emt 00:00:02]} 10.
Qe1 {[%clk 00:20:21]} {[%emt 00:02:53]} Qe7 {[%clk 00:20:45]} {[%emt 00:01:53]}
11. Bg5 {[%clk 00:19:38]} {[%emt 00:00:32]} exd3 {[%clk 00:20:31]} {[%emt
00:00:20]} 12. Bxf6 {[%clk 00:19:30]} {[%emt 00:00:14]} gxf6 {[%clk 00:20:24]}
{[%emt 00:00:12]} 13. Qxe7+ {[%clk 00:19:24]} {[%emt 00:00:11]} Kxe7 {[%clk
00:20:28]} {[%emt 00:00:02]} 14. cxd3 {[%clk 00:19:26]} {[%emt 00:00:02]} Be6
{[%clk 00:20:05]} {[%emt 00:00:28]} 15. Rfe1 {[%clk 00:19:11]} {[%emt
00:00:27]} Rad8 {[%clk 00:19:57]} {[%emt 00:00:07]} 16. d4 {[%clk 00:16:54]}
{[%emt 00:02:22]} Kd6 {[%clk 00:19:54]} {[%emt 00:00:08]} 17. f3 {[%clk
00:15:13]} {[%emt 00:01:46]} Rb8 {[%clk 00:19:37]} {[%emt 00:00:22]} 18. Rab1
{[%clk 00:13:28]} {[%emt 00:01:50]} Bxa2 {[%clk 00:19:11]} {[%emt 00:00:31]} 19.
Rxb8 {[%clk 00:13:03]} {[%emt 00:00:30]} Rxb8 {[%clk 00:19:14]} {[%emt
00:00:02]} 0-1

[Event "New Zealand Rapid Championship"]
[Site "Wellington"]
[Date "2023.01.11"]
[Round "1.11"]
[White "Parfene, Horatiu"]
[Black "Baker, Ilias Angelo (Leo)"]
[Result "1/2-1/2"]
[TimeControl "25+5"]
[WhiteFideId "1208438"]
[BlackFideId "4311116"]
[WhiteElo "2085"]
[BlackElo "1503"]

1. e4 {[%clk 00:25:08]} {[%emt 00:00:01]} e5 {[%clk 00:24:40]} {[%emt
00:00:30]} 2. Nf3 {[%clk 00:25:11]} {[%emt 00:00:02]} Nc6 {[%clk 00:24:43]}
{[%emt 00:00:02]} 3. Bb5 {[%clk 00:25:14]} {[%emt 00:00:01]} a6 {[%clk
00:24:47]} {[%emt 00:00:02]} 4. Ba4 {[%clk 00:25:18]} {[%emt 00:00:01]} Nf6
{[%clk 00:24:50]} {[%emt 00:00:02]} 5. O-O {[%clk 00:25:21]} {[%emt 00:00:02]}
b5 {[%clk 00:24:54]} {[%emt 00:00:01]} 6. Bb3 {[%clk 00:25:25]} Bc5 {[%clk
00:24:57]} {[%emt 00:00:01]} 7. d3 {[%clk 00:24:13]} {[%emt 00:01:17]} d6
{[%clk 00:24:51]} {[%emt 00:00:12]} 8. h3 {[%clk 00:24:14]} {[%emt 00:00:04]}
Na5 {[%clk 00:23:15]} {[%emt 00:01:46]} 9. Bg5 {[%clk 00:22:56]} {[%emt
00:01:26]} Nxb3 {[%clk 00:22:15]} {[%emt 00:01:06]} 10. axb3 {[%clk 00:23:00]}
h6 {[%clk 00:21:55]} {[%emt 00:00:17]} 11. Bh4 {[%clk 00:21:14]} {[%emt
00:01:50]} g5 {[%clk 00:20:37]} {[%emt 00:01:23]} 12. Bg3 {[%clk 00:21:15]}
{[%emt 00:00:04]} Bb6 {[%clk 00:16:58]} {[%emt 00:03:44]} 13. Re1 {[%clk
00:18:38]} {[%emt 00:02:42]} Nh5 {[%clk 00:14:30]} {[%emt 00:02:34]} 14. Kh2
{[%clk 00:12:35]} {[%emt 00:06:08]} Nf4 {[%clk 00:12:57]} {[%emt 00:01:36]} 15.
d4 {[%clk 00:09:32]} {[%emt 00:03:10]} f6 {[%clk 00:10:13]} {[%emt 00:02:49]}
16. Bxf4 {[%clk 00:03:39]} {[%emt 00:05:58]} gxf4 {[%clk 00:09:53]} {[%emt
00:00:25]} 17. Nh4 {[%clk 00:03:36]} {[%emt 00:00:07]} Be6 {[%clk 00:08:10]}
{[%emt 00:01:49]} 18. Nf5 {[%clk 00:03:15]} {[%emt 00:00:26]} Qd7 {[%clk
00:06:44]} {[%emt 00:01:30]} 19. dxe5 {[%clk 00:01:20]} {[%emt 00:02:01]} fxe5
{[%clk 00:06:05]} {[%emt 00:00:44]} 20. Qh5+ {[%clk 00:00:50]} {[%emt
00:00:34]} Qf7 {[%clk 00:05:45]} {[%emt 00:00:25]} 21. Ng7+ {[%clk 00:00:44]}
{[%emt 00:00:12]} Kd7 {[%clk 00:05:48]} {[%emt 00:00:02]} 22. Qxf7+ {[%clk
00:00:34]} {[%emt 00:00:14]} Bxf7 {[%clk 00:05:51]} {[%emt 00:00:02]} 23. f3
{[%clk 00:00:32]} {[%emt 00:00:08]} Bf2 {[%clk 00:04:48]} {[%emt 00:01:12]} 24.
Re2 {[%clk 00:00:36]} Bg3+ {[%clk 00:04:52]} 25. Kg1 {[%clk 00:00:40]} Bg6
{[%clk 00:04:37]} {[%emt 00:00:19]} 26. Nc3 {[%clk 00:00:28]} {[%emt 00:00:17]}
Rhg8 {[%clk 00:03:54]} {[%emt 00:00:48]} 27. Nf5 {[%clk 00:00:32]} Bxf5 {[%clk
00:03:58]} {[%emt 00:00:01]} 28. exf5 {[%clk 00:00:36]} c6 {[%clk 00:03:41]}
{[%emt 00:00:22]} 29. Rd2 {[%clk 00:00:36]} {[%emt 00:00:08]} Rgf8 {[%clk
00:03:24]} {[%emt 00:00:19]} 30. Ne4 {[%clk 00:00:40]} {[%emt 00:00:02]} d5
{[%clk 00:03:09]} {[%emt 00:00:20]} 31. Nc5+ {[%clk 00:00:43]} {[%emt
00:00:02]} Kd6 {[%clk 00:02:50]} {[%emt 00:00:24]} 32. b4 {[%clk 00:00:38]}
{[%emt 00:00:11]} Rxf5 {[%clk 00:02:22]} {[%emt 00:00:32]} 33. Rxa6 {[%clk
00:00:32]} {[%emt 00:00:11]} Rxa6 {[%clk 00:02:12]} {[%emt 00:00:15]} 34. Nxa6
{[%clk 00:00:36]} Rf7 {[%clk 00:01:43]} {[%emt 00:00:34]} 35. Nc5 {[%clk
00:00:39]} {[%emt 00:00:02]} Be1 {[%clk 00:01:36]} {[%emt 00:00:12]} 36. Re2
{[%clk 00:00:20]} {[%emt 00:00:23]} Bxb4 {[%clk 00:01:36]} {[%emt 00:00:05]} 37.
Nd3 {[%clk 00:00:25]} Bc5+ {[%clk 00:01:33]} {[%emt 00:00:08]} 38. Kf1 {[%clk
00:00:27]} {[%emt 00:00:02]} Be3 {[%clk 00:01:28]} {[%emt 00:00:08]} 39. g3
{[%clk 00:00:25]} {[%emt 00:00:10]} Rg7 {[%clk 00:01:23]} {[%emt 00:00:09]} 40.
g4 {[%clk 00:00:26]} {[%emt 00:00:04]} Ra7 {[%clk 00:01:27]} {[%emt 00:00:01]}
41. h4 {[%clk 00:00:16]} {[%emt 00:00:15]} c5 {[%clk 00:01:03]} {[%emt
00:00:30]} 42. Kg2 {[%clk 00:00:14]} {[%emt 00:00:07]} Ra1 {[%clk 00:00:57]}
{[%emt 00:00:10]} 43. Re1 {[%clk 00:00:18]} {[%emt 00:00:03]} Rxe1 {[%clk
00:00:59]} {[%emt 00:00:02]} 44. Nxe1 {[%clk 00:00:22]} Bc1 {[%clk 00:01:01]}
{[%emt 00:00:03]} 45. b3 {[%clk 00:00:25]} {[%emt 00:00:02]} e4 {[%clk
00:00:53]} {[%emt 00:00:13]} 46. g5 {[%clk 00:00:29]} {[%emt 00:00:01]} hxg5
{[%clk 00:00:52]} {[%emt 00:00:07]} 47. hxg5 {[%clk 00:00:33]} 1/2-1/2

[Event "New Zealand Rapid Championship"]
[Site "Wellington"]
[Date "2023.01.11"]
[Round "1.12"]
[White "Cummings, Nick"]
[Black "Cooke, Xandi"]
[Result "1-0"]
[TimeControl "25+5"]
[WhiteFideId "4301218"]
[BlackFideId "4314611"]
[WhiteElo "2038"]
[BlackElo "1415"]

1. Nf3 {[%clk 00:25:08]} d5 {[%clk 00:24:46]} {[%emt 00:00:24]} 2. c4 {[%clk
00:24:51]} {[%emt 00:00:22]} dxc4 {[%clk 00:24:19]} {[%emt 00:00:33]} 3. e3
{[%clk 00:24:54]} {[%emt 00:00:02]} Bg4 {[%clk 00:23:18]} {[%emt 00:01:06]} 4.
Bxc4 {[%clk 00:24:55]} {[%emt 00:00:03]} e6 {[%clk 00:23:03]} {[%emt 00:00:21]}
5. Qb3 {[%clk 00:24:51]} {[%emt 00:00:08]} Qc8 {[%clk 00:21:02]} {[%emt
00:02:06]} 6. Be2 {[%clk 00:24:40]} {[%emt 00:00:26]} Bd6 {[%clk 00:20:39]}
{[%emt 00:00:18]} 7. Qa4+ {[%clk 00:24:41]} {[%emt 00:00:04]} Qd7 {[%clk
00:18:02]} {[%emt 00:02:42]} 8. Qxg4 {[%clk 00:24:41]} {[%emt 00:00:03]} f6
{[%clk 00:16:45]} {[%emt 00:01:23]} 9. Nc3 {[%clk 00:24:15]} {[%emt 00:00:30]}
a6 {[%clk 00:16:31]} {[%emt 00:00:27]} 10. Qa4 {[%clk 00:23:59]} {[%emt
00:00:13]} Qxa4 {[%clk 00:15:31]} {[%emt 00:01:07]} 11. Nxa4 {[%clk 00:24:01]}
{[%emt 00:00:02]} Ne7 {[%clk 00:15:24]} {[%emt 00:00:12]} 12. O-O {[%clk
00:23:50]} {[%emt 00:00:16]} Nbc6 {[%clk 00:14:51]} {[%emt 00:00:38]} 13. d4
{[%clk 00:23:36]} {[%emt 00:00:19]} e5 {[%clk 00:14:26]} {[%emt 00:00:31]} 14.
dxe5 {[%clk 00:22:36]} {[%emt 00:01:04]} Nxe5 {[%clk 00:14:19]} {[%emt
00:00:13]} 15. Nxe5 {[%clk 00:22:09]} {[%emt 00:00:31]} fxe5 {[%clk 00:13:47]}
{[%emt 00:00:38]} 16. b3 {[%clk 00:21:05]} {[%emt 00:01:10]} Nd5 {[%clk
00:13:18]} {[%emt 00:00:34]} 17. Bb2 {[%clk 00:19:56]} {[%emt 00:01:13]} Nb4
{[%clk 00:13:07]} {[%emt 00:00:21]} 18. a3 {[%clk 00:19:13]} {[%emt 00:00:43]}
Nc6 {[%clk 00:13:06]} {[%emt 00:00:06]} 19. Bf3 {[%clk 00:19:06]} {[%emt
00:00:11]} O-O-O {[%clk 00:12:25]} {[%emt 00:00:47]} 20. Bxc6 {[%clk 00:19:06]}
{[%emt 00:00:05]} bxc6 {[%emt 00:00:02]} 21. Rac1 {[%clk 00:19:04]} {[%emt
00:00:06]} Kb7 {[%clk 00:12:05]} {[%emt 00:00:29]} 22. Rc4 {[%clk 00:18:56]}
{[%emt 00:00:13]} Rhe8 {[%clk 00:11:17]} {[%emt 00:00:54]} 23. e4 {[%clk
00:18:56]} {[%emt 00:00:10]} Re6 {[%clk 00:11:01]} {[%emt 00:00:15]} 24. Nc5+
{[%clk 00:18:46]} {[%emt 00:00:14]} Bxc5 {[%clk 00:11:03]} {[%emt 00:00:05]} 25.
Rxc5 {[%clk 00:18:48]} {[%emt 00:00:03]} Rd3 {[%clk 00:10:29]} {[%emt
00:00:40]} 26. b4 {[%clk 00:18:40]} {[%emt 00:00:11]} g6 {[%clk 00:10:16]}
{[%emt 00:00:19]} 27. Ra5 {[%clk 00:18:01]} {[%emt 00:00:41]} Rb3 {[%clk
00:09:52]} {[%emt 00:00:31]} 28. Bxe5 {[%clk 00:17:40]} {[%emt 00:00:29]} Kb6
{[%clk 00:09:18]} {[%emt 00:00:36]} 29. Bd4+ {[%clk 00:17:13]} {[%emt
00:00:31]} Kb7 {[%clk 00:09:11]} {[%emt 00:00:13]} 30. f3 {[%clk 00:16:28]}
{[%emt 00:00:49]} Rd6 {[%clk 00:08:55]} {[%emt 00:00:22]} 31. Rd1 {[%clk
00:16:11]} {[%emt 00:00:20]} Rc3 {[%clk 00:08:29]} {[%emt 00:00:33]} 32. Bxc3
{[%clk 00:15:52]} {[%emt 00:00:24]} Rxd1+ {[%clk 00:08:32]} {[%emt 00:00:02]}
33. Kf2 {[%clk 00:15:54]} {[%emt 00:00:01]} Rc1 {[%clk 00:08:34]} {[%emt
00:00:05]} 34. Bf6 {[%clk 00:15:33]} {[%emt 00:00:23]} Rd1 {[%clk 00:08:18]}
{[%emt 00:00:23]} 35. e5 {[%clk 00:15:24]} {[%emt 00:00:15]} Rd7 {[%clk
00:08:12]} {[%emt 00:00:11]} 36. e6 {[%clk 00:15:18]} {[%emt 00:00:10]} 1-0